bitfinex/quotes_BTCUSD_20241128
["timestamp","ask_amount","ask_price","bid_price","bid_amount"]
[1732792042710,6e-05,95186.0,95181.0,0.4649445]
[1732792042959,6e-05,95186.0,95181.0,0.60331663]
[1732792043190,6e-05,95186.0,95185.0,0.255058]
[1732792043405,6e-05,95186.0,95185.0,0.72952394]
[1732792043644,6e-05,95186.0,95185.0,0.90285762]
[1732792043881,6e-05,95186.0,95185.0,1.08945088]
[1732792044111,6e-05,95186.0,95185.0,0.90285762]
[1732792044765,6e-05,95186.0,95185.0,1.08935278]
[1732792045283,0.0008602,95216.0,95186.0,0.15]
[1732792045523,0.15319941,95210.0,95199.0,0.01219819]
[1732792045831,0.15319941,95210.0,95193.0,0.15]
[1732792045832,0.210064,95209.0,95200.0,0.03543252]
[1732792045884,0.105035,95206.0,95200.0,0.03543252]
[1732792046133,0.105036,95205.0,95201.0,0.03543252]
[1732792046321,0.210063,95210.0,95202.0,0.03543252]
[1732792046529,0.210063,95210.0,95188.0,0.21011]
[1732792046530,0.00850685,95204.0,95203.0,0.03543252]
[1732792046648,0.105035,95206.0,95203.0,0.02000359]
[1732792046986,0.105036,95205.0,95204.0,0.00761844]
[1732792047198,0.11354285,95205.0,95204.0,0.01980936]
[1732792047813,0.30513008,95205.0,95204.0,0.01980936]
[1732792048028,0.30513008,95205.0,95204.0,0.00761844]
[1732792048029,0.40797529,95205.0,95204.0,0.00761844]
[1732792048264,0.40797529,95205.0,95200.0,0.002]
[1732792048265,0.10504,95201.0,95200.0,0.002]
[1732792048432,0.210114,95187.0,95180.0,0.01542893]
[1732792048632,0.210114,95187.0,95181.0,0.01981847]
[1732792048633,0.105061,95182.0,95181.0,0.01981847]
[1732792048790,0.229561,95182.0,95181.0,0.0076228]
[1732792048991,0.34090868,95182.0,95181.0,0.0076228]
[1732792049199,0.10508,95165.0,95164.0,0.01220575]
[1732792049453,0.10508,95165.0,95164.0,0.0274762]
[1732792049647,0.11355294,95165.0,95164.0,0.0274762]
[1732792049871,0.10508,95165.0,95164.0,0.02747773]
[1732792050083,0.11355294,95165.0,95164.0,0.02747773]
[1732792050327,0.11455294,95165.0,95164.0,0.02747773]
[1732792051384,0.18324017,95165.0,95164.0,0.02747773]
[1732792051623,0.18224017,95165.0,95164.0,0.015264]
[1732792051842,0.36648538,95165.0,95164.0,0.00763226]
[1732792052051,0.41488538,95165.0,95164.0,0.00763226]
[1732792052715,0.44688538,95165.0,95164.0,0.00763226]
[1732792053182,0.47363126,95165.0,95164.0,0.00863226]
[1732792053550,0.46763126,95165.0,95164.0,0.00763226]
[1732792054565,0.48048559,95165.0,95164.0,0.00763226]
[1732792055002,0.47648559,95165.0,95164.0,0.00963226]
[1732792055198,0.47648559,95165.0,95164.0,0.00863226]
[1732792055536,0.48048559,95165.0,95164.0,0.00763226]
[1732792055750,0.48048559,95165.0,95164.0,0.00863226]
[1732792055961,0.48748559,95165.0,95164.0,0.00863226]
[1732792056210,0.38579836,95165.0,95164.0,0.00963226]
[1732792056412,0.38579836,95165.0,95164.0,0.00863226]
[1732792056413,0.36594403,95165.0,95164.0,0.00863226]
[1732792056620,0.36594403,95165.0,95164.0,0.00763226]
[1732792056840,0.36594403,95165.0,95164.0,0.00863226]
[1732792056841,0.47477549,95165.0,95164.0,0.00863226]
[1732792057531,0.37194403,95165.0,95164.0,0.00863226]
[1732792058181,0.36594403,95165.0,95164.0,0.00763226]
[1732792058391,0.37194403,95165.0,95164.0,0.00863226]
[1732792058840,0.14029882,95165.0,95164.0,0.001]
[1732792059058,0.11955294,95165.0,95164.0,0.001]
[1732792059508,0.29848438,95165.0,95164.0,0.00865757]
[1732792059710,0.29248438,95165.0,95164.0,0.001]
[1732792059915,0.41758438,95165.0,95164.0,0.001]
[1732792060134,0.01,95164.0,95163.0,0.0017228]
[1732792060357,0.24092621,95164.0,95163.0,0.0017228]
[1732792060585,0.30363224,95164.0,95163.0,0.0017228]
[1732792062548,0.30963224,95164.0,95163.0,0.0017228]
[1732792062760,0.30963224,95164.0,95163.0,0.0027228]
[1732792062974,0.30363224,95164.0,95163.0,0.0027228]
[1732792064081,0.30963224,95164.0,95163.0,0.0037228]
[1732792064534,0.25522541,95164.0,95163.0,0.0037228]
[1732792065390,0.24922541,95164.0,95163.0,0.0027228]
[1732792065597,0.25522541,95164.0,95163.0,0.0027228]
[1732792066444,0.24522541,95164.0,95163.0,0.0027228]
[1732792067291,0.25522541,95164.0,95163.0,0.0027228]
[1732792068417,0.33737549,95164.0,95163.0,0.0027228]
[1732792071335,0.49737549,95164.0,95163.0,8e-07]
[1732792071578,0.360205,95145.0,95126.0,0.01527688]
[1732792071802,0.360205,95145.0,95125.0,0.0017234]
[1732792071803,0.105123,95126.0,95125.0,0.0017234]
[1732792072247,0.105123,95126.0,95125.0,0.02159924]
[1732792072455,0.11337212,95126.0,95125.0,0.02159924]
[1732792073562,0.11437212,95126.0,95125.0,0.02159924]
[1732792075081,0.11437212,95126.0,95125.0,0.03687612]
[1732792076250,0.15319941,95136.0,95125.0,0.04909976]
[1732792076476,0.00687427,95126.0,95125.0,0.03687612]
[1732792076703,0.210227,95135.0,95125.0,0.06654503]
[1732792076704,0.10512,95129.0,95125.0,0.06654503]
[1732792076924,0.105118,95131.0,95126.0,0.03527177]
[1732792077151,0.105118,95131.0,95125.0,0.03127326]
[1732792077152,0.00687427,95128.0,95127.0,0.05727483]
[1732792077359,0.105121,95128.0,95127.0,0.05727483]
[1732792077598,0.11198401,95128.0,95127.0,0.05727483]
[1732792078087,0.00686301,95128.0,95127.0,0.05727483]
[1732792078291,0.210238,95131.0,95127.0,0.05727483]
[1732792078292,0.06465203,95129.0,95127.0,0.05727483]
[1732792078521,0.210238,95131.0,95128.0,0.04325711]
[1732792078734,0.210238,95131.0,95125.0,0.03827326]
[1732792078735,0.105121,95129.0,95125.0,0.03827326]
[1732792078927,0.105121,95129.0,95127.0,0.002]
[1732792079160,0.105121,95129.0,95128.0,0.03538002]
[1732792079613,0.15319941,95136.0,95128.0,0.03538002]
[1732792079821,0.105119,95130.0,95129.0,0.03538002]
[1732792080256,0.15319941,95136.0,95129.0,0.05265775]
[1732792080453,0.105119,95130.0,95128.0,0.001]
[1732792080689,0.105119,95130.0,95129.0,0.03542521]
[1732792081574,0.105119,95130.0,95129.0,0.03842521]
[1732792082524,0.105119,95130.0,95129.0,0.03942521]
[1732792083941,0.1108378,95130.0,95129.0,0.03942521]
[1732792085132,0.1108378,95130.0,95129.0,0.04114721]
[1732792087262,0.1108378,95130.0,95129.0,0.04114721]
[1732792088459,0.1108378,95130.0,95129.0,0.04072525]
[1732792089169,0.1108378,95130.0,95129.0,0.02550503]
[1732792091837,0.1108378,95130.0,95129.0,0.02550623]
[1732792093772,0.1108378,95130.0,95129.0,0.11938536]
[1732792094653,0.1108378,95130.0,95129.0,0.37306507]
[1732792095533,0.1108378,95130.0,95129.0,0.56140542]
[1732792095740,0.1108378,95130.0,95129.0,0.37306507]
[1732792096203,0.1108378,95130.0,95129.0,0.37318672]
[1732792097299,0.1108378,95130.0,95129.0,0.37018672]
[1732792100311,0.1116995,95130.0,95129.0,0.38234888]
[1732792100544,0.1116995,95130.0,95129.0,0.37017624]
[1732792100762,0.1116995,95130.0,95129.0,0.37027542]
[1732792100959,0.1116995,95130.0,95129.0,0.36927542]
[1732792101432,0.1116995,95130.0,95129.0,2.47367542]
[1732792101674,0.1059807,95130.0,95129.0,2.47372142]
[1732792102571,0.1059807,95130.0,95129.0,2.66217209]
[1732792103060,0.27177234,95130.0,95129.0,2.12589575]
[1732792103556,0.27177234,95130.0,95129.0,2.11372673]
[1732792104022,0.27744791,95130.0,95129.0,2.11372673]
[1732792104249,0.27744791,95130.0,95129.0,2.106122]
[1732792105203,0.27844791,95130.0,95129.0,2.106122]
[1732792105439,0.21550148,95130.0,95129.0,2.106122]
[1732792105930,0.20982591,95130.0,95129.0,2.106122]
[1732792106160,0.21082591,95130.0,95129.0,2.106122]
[1732792108071,0.1079807,95130.0,95129.0,2.106122]
[1732792112701,0.0028617,95130.0,95129.0,2.106122]
[1732792112941,0.0028617,95130.0,95129.0,2.25565873]
[1732792113182,0.0028617,95130.0,95129.0,2.16142456]
[1732792113422,0.1069807,95130.0,95129.0,2.5214623]
[1732792113638,0.1069807,95130.0,95129.0,2.31495355]
[1732792113878,0.1069807,95130.0,95129.0,2.66486341]
[1732792114086,0.1069807,95130.0,95129.0,2.62433045]
[1732792114343,0.1059807,95130.0,95129.0,2.62433045]
[1732792114579,0.1059807,95130.0,95129.0,2.63133045]
[1732792114580,0.1069807,95130.0,95129.0,2.63133045]
[1732792114790,0.1069807,95130.0,95129.0,2.63233045]
[1732792115335,0.1069807,95130.0,95129.0,2.63133045]
[1732792115590,0.0018617,95130.0,95129.0,2.63433045]
[1732792116522,0.0018617,95130.0,95129.0,2.53149899]
[1732792117028,0.15319941,95150.0,95129.0,3.48620779]
[1732792117262,0.15319941,95150.0,95147.0,0.09422188]
[1732792117501,0.15319941,95150.0,95146.0,0.14133282]
[1732792117502,0.210196,95150.0,95146.0,0.14133282]
[1732792117732,0.1051,95147.0,95146.0,0.14133282]
[1732792117951,0.1051,95147.0,95146.0,0.16107961]
[1732792118199,0.1051,95147.0,95146.0,0.50879568]
[1732792118440,0.10979597,95147.0,95146.0,0.50879568]
[1732792118679,0.10979597,95147.0,95146.0,0.01974679]
[1732792119410,0.11079597,95147.0,95146.0,0.01974161]
[1732792119623,0.00569597,95147.0,95145.0,0.14127062]
[1732792119833,0.11079597,95147.0,95146.0,0.01973685]
[1732792120723,0.10979597,95147.0,95146.0,0.00759054]
[1732792121167,0.11079597,95147.0,95146.0,0.00759054]
[1732792121626,0.11079597,95147.0,95146.0,0.10177581]
[1732792121879,0.11065787,95147.0,95146.0,0.10177581]
[1732792122117,0.11065787,95147.0,95146.0,0.10377652]
[1732792123293,0.11065787,95147.0,95146.0,0.09618527]
[1732792123532,0.26660807,95147.0,95146.0,0.002]
[1732792123784,0.26660807,95147.0,95146.0,0.00959193]
[1732792124016,0.39290807,95147.0,95146.0,0.002]
[1732792124259,0.28780807,95147.0,95128.0,0.0017234]
[1732792124510,0.187619,95130.0,95128.0,0.0017234]
[1732792124737,0.29046421,95130.0,95128.0,0.0017234]
[1732792125168,0.29521759,95130.0,95128.0,0.0017234]
[1732792125397,0.29521759,95130.0,95129.0,2.08354029]
[1732792125843,0.38780865,95130.0,95129.0,2.08354029]
[1732792126990,0.4090141,95130.0,95129.0,2.08354029]
[1732792127242,0.4110141,95130.0,95129.0,2.08354029]
[1732792127483,0.4794141,95130.0,95129.0,2.08354029]
[1732792127731,0.4894141,95130.0,95129.0,2.08354029]
[1732792128218,0.39582304,95130.0,95129.0,2.08354029]
[1732792128722,0.39482304,95130.0,95129.0,2.08354029]
[1732792128965,0.55282304,95130.0,95129.0,2.08454029]
[1732792129201,0.55782304,95130.0,95129.0,2.08454029]
[1732792130625,0.55282304,95130.0,95129.0,1.97942029]
[1732792130630,0.56282304,95130.0,95129.0,1.97942029]
[1732792130851,0.6636545,95130.0,95129.0,1.97842029]
[1732792131078,0.6636545,95130.0,95129.0,1.95839629]
[1732792131318,0.6726545,95130.0,95129.0,1.89532429]
[1732792131549,0.6726545,95130.0,95129.0,1.87430029]
[1732792133397,0.6735164,95130.0,95129.0,1.87430029]
[1732792134595,0.6735164,95130.0,95129.0,1.83225229]
[1732792135247,0.6735164,95130.0,95129.0,1.75129359]
[1732792135467,0.6735164,95130.0,95129.0,1.68822159]
[1732792135953,0.6735164,95130.0,95129.0,1.52274856]
[1732792136172,0.6735164,95130.0,95129.0,1.45447756]
[1732792136627,0.6675164,95130.0,95129.0,1.45447756]
[1732792136844,0.6675164,95130.0,95129.0,1.43345356]
[1732792137061,0.6765164,95130.0,95129.0,1.36714756]
[1732792137335,0.6765164,95130.0,95129.0,1.25387425]
[1732792137336,1.5095164,95130.0,95129.0,1.25387425]
[1732792137573,1.39402237,95130.0,95129.0,0.87077425]
[1732792137807,1.40302237,95130.0,95129.0,0.82872625]
[1732792138029,1.49725753,95130.0,95129.0,0.76565425]
[1732792138512,1.38502237,95130.0,95129.0,0.76465425]
[1732792138779,1.48825753,95130.0,95129.0,0.76565425]
[1732792138999,1.49725753,95130.0,95129.0,0.66053425]
[1732792139224,1.40302237,95130.0,95129.0,0.66053425]
[1732792139916,1.40302237,95130.0,95129.0,0.52508215]
[1732792140140,1.40302237,95130.0,95129.0,0.50405815]
[1732792140368,1.42426261,95130.0,95129.0,0.50405815]
[1732792140579,1.62912584,95130.0,95129.0,0.46723987]
[1732792140837,1.53496261,95130.0,95129.0,0.44621487]
[1732792141082,1.53496261,95130.0,95129.0,0.36211487]
[1732792141312,1.53496261,95130.0,95101.0,0.02]
[1732792141313,0.02,95102.0,95101.0,0.02]
[1732792141530,0.40189521,95102.0,95101.0,0.02]
[1732792141958,0.40189521,95102.0,95101.0,1e-06]
[1732792143040,0.42282928,95102.0,95101.0,1e-06]
[1732792144596,0.43282928,95102.0,95101.0,1e-06]
[1732792144856,0.43282928,95102.0,95101.0,8e-07]
[1732792145763,0.42892928,95102.0,95101.0,8e-07]
[1732792146018,0.42192928,95102.0,95101.0,8e-07]
[1732792146266,0.96392928,95102.0,95101.0,8e-07]
[1732792146498,0.97292928,95102.0,95101.0,8e-07]
[1732792146729,0.97714028,95102.0,95101.0,8e-07]
[1732792147202,0.98514028,95102.0,95101.0,8e-07]
[1732792147643,0.98514028,95102.0,95089.0,8e-07]
[1732792147644,0.298163,95090.0,95089.0,8e-07]
[1732792147900,0.40100821,95090.0,95089.0,8e-07]
[1732792148583,0.94300821,95090.0,95089.0,8e-07]
[1732792148822,0.298183,95072.0,95071.0,8e-07]
[1732792149053,0.40102821,95072.0,95071.0,8e-07]
[1732792149988,0.29819,95066.0,95065.0,8e-07]
[1732792150207,0.40103521,95066.0,95065.0,8e-07]
[1732792150436,0.94303521,95066.0,95065.0,8e-07]
[1732792150660,0.94303521,95066.0,95051.0,0.0004]
[1732792150661,0.848195,95061.0,95060.0,1e-06]
[1732792150883,0.95104021,95061.0,95060.0,1e-06]
[1732792151165,1.49304021,95061.0,95060.0,1e-06]
[1732792151652,1.01472821,95061.0,95060.0,0.02969063]
[1732792151910,0.210302,95101.0,95062.0,0.0809]
[1732792152167,0.15319941,95080.0,95073.0,0.1247]
[1732792152835,0.105181,95074.0,95073.0,0.1247]
[1732792153321,0.17449428,95076.0,95073.0,0.1247]
[1732792153578,0.105181,95074.0,95073.0,0.1247]
[1732792154470,0.105181,95074.0,95073.0,0.1257]
[1732792154690,0.20802621,95074.0,95073.0,0.0773]
[1732792154923,0.20802621,95074.0,95073.0,0.0763]
[1732792155366,0.105194,95062.0,95061.0,0.0818]
[1732792156955,0.105194,95062.0,95061.0,0.081]
[1732792157679,0.20803921,95062.0,95061.0,0.081]
[1732792158126,0.21103921,95062.0,95061.0,0.081]
[1732792158375,0.116194,95062.0,95061.0,0.081]
[1732792158621,0.105194,95062.0,95061.0,0.081]
[1732792158836,0.111194,95062.0,95061.0,0.081]
[1732792159060,0.114194,95062.0,95061.0,0.081]
[1732792159301,0.108194,95062.0,95061.0,0.081]
[1732792159537,0.113194,95062.0,95061.0,0.081]
[1732792160447,0.110194,95062.0,95061.0,0.081]
[1732792160664,0.113194,95062.0,95061.0,0.081]
[1732792161346,0.008,95062.0,95061.0,0.081]
[1732792161578,0.008,95062.0,95061.0,0.1037501]
[1732792161791,0.15319941,95071.0,95063.0,0.01]
[1732792162034,0.210351,95079.0,95069.0,0.01]
[1732792162251,0.25838141,95073.0,95069.0,0.01]
[1732792162462,0.15319941,95073.0,95069.0,0.01]
[1732792162689,0.25838141,95073.0,95069.0,0.01]
[1732792162921,0.15319941,95073.0,95069.0,0.01]
[1732792163166,0.15319941,95073.0,95064.0,0.0762]
[1732792163167,0.210375,95069.0,95064.0,0.0762]
[1732792163414,0.105191,95065.0,95064.0,0.0762]
[1732792163668,0.20803621,95065.0,95064.0,0.0762]
[1732792164794,0.20903621,95065.0,95064.0,0.0762]
[1732792165036,0.20803621,95065.0,95064.0,0.0762]
[1732792165497,0.20903621,95065.0,95064.0,0.0772]
[1732792165946,0.20803621,95065.0,95064.0,0.0772]
[1732792166166,0.20803621,95065.0,95064.0,0.0782]
[1732792166463,0.20803621,95065.0,95064.0,0.0772]
[1732792166913,0.20803621,95065.0,95064.0,0.0762]
[1732792168540,0.20889871,95065.0,95064.0,0.0762]
[1732792169218,0.20989871,95065.0,95064.0,0.0762]
[1732792169447,0.20889871,95065.0,95064.0,0.0762]
[1732792169876,0.21089871,95065.0,95064.0,0.0762]
[1732792170100,0.128194,95062.0,95061.0,0.001725]
[1732792170354,0.23103921,95062.0,95061.0,0.001725]
[1732792172207,0.20803921,95062.0,95061.0,0.001725]
[1732792172429,0.105194,95062.0,95061.0,0.001725]
[1732792172975,0.105194,95062.0,95061.0,0.001725]
[1732792173210,0.108194,95062.0,95061.0,0.001725]
[1732792173633,0.107194,95062.0,95061.0,0.001725]
[1732792173860,0.109194,95062.0,95061.0,0.001725]
[1732792174368,0.21003921,95062.0,95061.0,0.001725]
[1732792174615,0.38303921,95062.0,95061.0,0.001725]
[1732792174835,0.38403921,95062.0,95061.0,0.001725]
[1732792181213,0.38490171,95062.0,95061.0,0.001725]
[1732792181934,0.21190171,95062.0,95061.0,0.001725]
[1732792182215,0.21190171,95062.0,95061.0,0.131425]
[1732792182216,0.1090565,95062.0,95061.0,0.131425]
[1732792182417,0.0038625,95062.0,95061.0,0.131425]
[1732792182659,0.1090565,95062.0,95061.0,0.131425]
[1732792183091,0.0028625,95062.0,95061.0,0.131425]
[1732792183363,0.0028625,95062.0,95061.0,0.38829191]
[1732792183364,0.0008625,95062.0,95061.0,0.38829191]
[1732792183610,0.003,95062.0,95061.0,0.64179365]
[1732792183834,0.003,95062.0,95061.0,0.87685228]
[1732792184057,0.002,95062.0,95061.0,0.87685228]
[1732792184300,0.002,95062.0,95061.0,0.77465728]
[1732792184519,0.002,95062.0,95061.0,0.53959865]
[1732792185180,0.002,95062.0,95061.0,0.53958591]
[1732792185637,0.0008625,95065.0,95061.0,0.72457908]
[1732792185853,0.0008625,95065.0,95063.0,0.14121269]
[1732792186071,0.0008625,95065.0,95064.0,0.0821]
[1732792186309,0.0008625,95065.0,95064.0,0.1389]
[1732792187024,0.0008625,95065.0,95064.0,0.244092]
[1732792187246,0.0008625,95065.0,95064.0,0.1389]
[1732792187475,0.0018625,95065.0,95064.0,0.23503468]
[1732792187693,0.0018625,95065.0,95064.0,0.1439]
[1732792187933,0.0018625,95065.0,95064.0,0.23338565]
[1732792188414,0.0018625,95065.0,95064.0,0.1439]
[1732792189832,0.0018625,95065.0,95064.0,0.1539]
[1732792190069,0.0018625,95065.0,95064.0,0.259092]
[1732792190295,0.0018625,95065.0,95064.0,0.1539]
[1732792191230,0.0018625,95065.0,95064.0,0.3532095]
[1732792191476,0.0018625,95065.0,95064.0,0.36192346]
[1732792191705,0.0018625,95065.0,95064.0,0.25673146]
[1732792192112,0.0018625,95065.0,95064.0,0.2480175]
[1732792192117,0.0018625,95065.0,95064.0,0.1539]
[1732792193537,0.0018625,95065.0,95064.0,0.1339]
[1732792193538,0.1070535,95065.0,95064.0,0.1339]
[1732792193784,0.1070535,95065.0,95064.0,0.1439]
[1732792194433,0.1070535,95065.0,95064.0,0.1339]
[1732792194882,0.1070535,95065.0,95064.0,0.0871]
[1732792195553,0.1060535,95065.0,95064.0,0.0821]
[1732792195983,0.1060535,95065.0,95064.0,0.0951]
[1732792199339,0.1060535,95065.0,95064.0,0.0851]
[1732792201102,0.1060535,95065.0,95064.0,0.003]
[1732792201542,0.20889871,95065.0,95064.0,0.003]
[1732792201776,0.20889871,95065.0,95064.0,0.002]
[1732792202231,0.20989871,95065.0,95064.0,0.002]
[1732792202667,0.20889871,95065.0,95064.0,0.002]
[1732792203110,0.20889871,95065.0,95061.0,0.001725]
[1732792203111,0.105194,95062.0,95061.0,0.001725]
[1732792204819,0.106194,95062.0,95061.0,0.001725]
[1732792205707,0.0018625,95062.0,95061.0,0.1543876]
[1732792205917,0.0018625,95062.0,95061.0,0.145425]
[1732792206342,0.0028625,95062.0,95061.0,0.25062]
[1732792206556,0.0018625,95062.0,95061.0,0.78665924]
[1732792206769,0.0008625,95062.0,95061.0,0.78865924]
[1732792207212,0.210275,95114.0,95083.0,0.0498]
[1732792207213,0.10517,95084.0,95083.0,0.0498]
[1732792207472,0.10517,95084.0,95083.0,0.07339]
[1732792207660,0.10517,95084.0,95083.0,0.0598]
[1732792209008,0.10517,95084.0,95074.0,0.0822]
[1732792209009,0.10518,95075.0,95074.0,0.0822]
[1732792209213,0.10518,95075.0,95074.0,0.0922]
[1732792209634,0.10518,95075.0,95074.0,0.0822]
[1732792209853,0.10518,95075.0,95074.0,0.0922]
[1732792210292,0.10518,95075.0,95074.0,0.0822]
[1732792210503,0.10518,95075.0,95074.0,0.0922]
[1732792211375,0.10518,95075.0,95074.0,0.10142]
[1732792211617,0.105175,95079.0,95078.0,0.01]
[1732792212594,0.210334,95087.0,95079.0,0.01]
[1732792212825,0.105167,95086.0,95085.0,0.0753]
[1732792214248,0.105167,95086.0,95085.0,0.1246]
[1732792214909,0.105167,95086.0,95085.0,0.1266]
[1732792215175,0.105167,95086.0,95085.0,0.1366]
[1732792215656,0.105166,95087.0,95086.0,0.01]
[1732792216124,0.210307,95099.0,95086.0,0.01]
[1732792216342,0.105164,95089.0,95086.0,0.01]
[1732792216574,0.105166,95087.0,95086.0,0.01]
[1732792217012,0.105166,95087.0,95086.0,0.012]
[1732792217231,0.105166,95087.0,95086.0,0.01]
[1732792217833,0.105165,95089.0,95086.0,0.011]
[1732792217835,0.15319941,95100.0,95089.0,0.01]
[1732792218050,0.105159,95094.0,95093.0,0.01]
[1732792218279,0.15319941,95100.0,95091.0,0.01]
[1732792218280,0.105161,95092.0,95091.0,0.01]
[1732792218835,0.003,95099.0,95097.0,0.01]
[1732792219120,0.15406131,95130.0,95101.0,0.207751]
[1732792219324,0.210254,95123.0,95101.0,0.40134922]
[1732792219533,0.105131,95119.0,95118.0,0.128]
[1732792220435,0.105131,95119.0,95118.0,0.138]
[1732792221341,0.105131,95119.0,95118.0,0.14]
[1732792221996,0.105131,95119.0,95118.0,0.141]
[1732792222442,0.15406131,95130.0,95118.0,0.141]
[1732792222650,0.10513,95120.0,95119.0,0.01]
[1732792223343,0.210254,95123.0,95119.0,0.01]
[1732792223554,0.10513,95120.0,95119.0,0.01]
[1732792224225,0.10513,95120.0,95119.0,0.011]
[1732792224462,0.10513,95120.0,95119.0,0.01]
[1732792225785,0.210256,95122.0,95119.0,0.0248]
[1732792226016,0.10513,95120.0,95119.0,0.0248]
[1732792226460,0.10513,95120.0,95119.0,0.01]
[1732792226892,0.10513,95120.0,95119.0,0.011]
[1732792227750,0.210243,95128.0,95122.0,0.01]
[1732792227978,0.105127,95123.0,95122.0,0.01]
[1732792229738,0.106127,95123.0,95122.0,0.01]
[1732792229987,0.001,95123.0,95121.0,0.01]
[1732792230208,0.105128,95122.0,95121.0,0.02]
[1732792230707,0.105128,95122.0,95121.0,0.0406436]
[1732792230930,0.105128,95122.0,95121.0,0.02]
[1732792231809,0.11418131,95122.0,95121.0,0.02]
[1732792232051,0.11418131,95122.0,95118.0,0.0813]
[1732792232052,0.105131,95119.0,95118.0,0.01]
[1732792232475,0.114262,95119.0,95118.0,0.01]
[1732792233604,0.114262,95119.0,95118.0,0.012]
[1732792235387,0.114262,95119.0,95118.0,0.013]
[1732792238350,0.114262,95119.0,95118.0,0.003]
[1732792238557,0.21710721,95119.0,95118.0,0.003]
[1732792239436,0.11197621,95119.0,95106.0,0.01]
[1732792239648,0.105144,95107.0,95106.0,0.01]
[1732792239863,0.15319941,95116.0,95109.0,0.01]
[1732792240080,0.105138,95114.0,95110.0,0.0752]
[1732792240295,0.15319941,95116.0,95115.0,0.0663]
[1732792240763,0.108131,95119.0,95118.0,0.01]
[1732792240986,0.003,95119.0,95118.0,0.01]
[1732792241210,0.108131,95119.0,95118.0,0.01]
[1732792241416,0.105131,95119.0,95118.0,0.01]
[1732792242343,0.105132,95118.0,95117.0,0.02]
[1732792243439,0.105132,95118.0,95117.0,0.01]
[1732792243673,0.105132,95118.0,95115.0,0.0493]
[1732792243674,0.105134,95116.0,95115.0,0.0563]
[1732792244551,0.105134,95116.0,95115.0,0.01]
[1732792245748,0.210266,95118.0,95114.0,0.01]
[1732792245979,0.315398,95118.0,95117.0,0.01]
[1732792246452,0.315398,95118.0,95115.0,0.014]
[1732792246453,0.210266,95118.0,95115.0,0.014]
[1732792246682,0.105134,95116.0,95115.0,0.014]
[1732792246905,0.105134,95116.0,95115.0,0.011]
[1732792247569,0.0008621,95122.0,95105.0,0.01]
[1732792247570,0.210267,95117.0,95105.0,0.01]
[1732792247796,0.210267,95117.0,95101.0,0.091]
[1732792247797,0.105149,95103.0,95102.0,0.0117242]
[1732792248528,0.11424646,95103.0,95102.0,0.0117242]
[1732792249465,0.11424646,95103.0,95102.0,0.0137242]
[1732792250131,0.11524646,95103.0,95102.0,0.0167242]
[1732792251723,0.11524646,95103.0,95102.0,0.0267242]
[1732792251724,0.01009746,95103.0,95102.0,0.0267242]
[1732792251982,0.01009746,95103.0,95102.0,0.14719662]
[1732792252229,0.15319941,95115.0,95114.0,0.02]
[1732792252230,0.25833441,95115.0,95114.0,0.02]
[1732792252452,0.105135,95115.0,95114.0,0.1006]
[1732792252684,0.11422485,95115.0,95114.0,0.1006]
[1732792252924,0.11422485,95115.0,95114.0,0.11066]
[1732792253879,0.11622485,95115.0,95114.0,0.11066]
[1732792254328,0.11722485,95115.0,95114.0,0.11066]
[1732792254556,0.11360256,95115.0,95114.0,0.11066]
[1732792255006,0.11260256,95115.0,95114.0,0.11066]
[1732792255228,0.11260256,95115.0,95114.0,0.0906]
[1732792255436,0.11260256,95115.0,95114.0,0.1016]
[1732792256063,0.11060256,95115.0,95114.0,0.1016]
[1732792256278,0.11060256,95115.0,95114.0,0.1056]
[1732792256695,0.11060256,95115.0,95114.0,0.11616]
[1732792256910,0.11060256,95115.0,95114.0,0.11516]
[1732792257125,0.11060256,95115.0,95114.0,0.1046]
[1732792257332,0.11060256,95115.0,95114.0,0.1056]
[1732792257753,0.11060256,95115.0,95114.0,0.1046]
[1732792258244,0.11060256,95115.0,95114.0,0.1056]
[1732792259753,0.11060256,95115.0,95114.0,0.0956]
[1732792260203,0.11060256,95115.0,95114.0,0.015]
[1732792260422,0.11060256,95115.0,95114.0,0.005]
[1732792260862,0.11060256,95115.0,95114.0,0.004]
[1732792261074,0.11060256,95115.0,95106.0,0.01]
[1732792261075,0.105144,95107.0,95106.0,0.01]
[1732792261543,0.11062444,95107.0,95106.0,0.01]
[1732792263183,0.11062444,95107.0,95106.0,0.02]
[1732792263390,0.11062444,95107.0,95106.0,0.023]
[1732792264081,0.11062444,95107.0,95106.0,0.024]
[1732792264297,0.11062444,95107.0,95106.0,0.021]
[1732792264519,0.11062444,95107.0,95106.0,0.11717076]
[1732792264748,0.11062444,95107.0,95106.0,0.023]
[1732792264954,0.105144,95107.0,95106.0,0.023]
[1732792265216,0.11061352,95107.0,95106.0,0.023]
[1732792265877,0.11061352,95107.0,95106.0,0.021]
[1732792266103,0.11061352,95107.0,95106.0,0.024]
[1732792269196,0.11061352,95107.0,95106.0,0.014]
[1732792269394,0.11061352,95107.0,95106.0,0.004]
[1732792270123,0.11061352,95107.0,95106.0,0.001]
[1732792270124,0.21345873,95107.0,95106.0,0.001]
[1732792270335,0.43595873,95107.0,95106.0,0.002]
[1732792270556,0.4687881,95107.0,95106.0,0.002]
[1732792270801,0.5232881,95107.0,95106.0,0.003]
[1732792271241,0.4181441,95107.0,95102.0,0.0017242]
[1732792271453,0.278149,95103.0,95102.0,0.0017242]
[1732792271660,0.41382358,95103.0,95102.0,0.0017242]
[1732792271884,0.41926668,95103.0,95102.0,0.0017242]
[1732792272096,0.41926668,95103.0,95102.0,2e-07]
[1732792272328,0.98293731,95103.0,95102.0,2e-07]
[1732792272530,1.06453685,95103.0,95102.0,2e-07]
[1732792273275,1.07353685,95103.0,95102.0,2e-07]
[1732792273488,1.06453685,95103.0,95102.0,2e-07]
[1732792273922,1.07353685,95103.0,95102.0,2e-07]
[1732792274161,0.105184,95071.0,95070.0,0.01]
[1732792274643,0.0054431,95071.0,95064.0,0.0795]
[1732792274865,0.10519,95066.0,95065.0,0.0117248]
[1732792275091,0.10519,95066.0,95065.0,0.0017248]
[1732792275354,0.10519,95066.0,95065.0,0.0217248]
[1732792275355,0.1106331,95066.0,95065.0,0.0217248]